fUST/lending_fUST_20240826
["ID","MTS","AMOUNT","RATE_DAILY","PERIOD"]
[335965818,1724645453222,-500.0,0.00012886,2]
[335965819,1724645453230,-567.0,0.00012886,2]
[335965820,1724645453240,-500.0,0.00012886,2]
[335965821,1724645453251,-500.0,0.00012886,2]
[335965822,1724645453260,-1159.41,0.00012886,2]
[335965823,1724645453270,-500.0,0.00012886,2]
[335965824,1724645453280,-335.49880222,0.00012886,2]
[335965825,1724645453289,-634.99,0.00012886,2]
[335965826,1724645453299,-635.4,0.00012886,2]
[335965827,1724645453309,-500.0,0.00012886,2]
[335965828,1724645453322,-1089.03,0.00012886,2]
[335965829,1724645453332,-500.0,0.00012886,2]
[335965830,1724645453341,-500.0,0.00012886,2]
[335965831,1724645453351,-975.63,0.00012886,2]
[335965832,1724645453362,-500.0,0.00012886,2]
[335965833,1724645453371,-420.84365521,0.00012886,2]
[335965834,1724645453381,-510.56,0.00012886,2]
[335965835,1724645453390,-500.0,0.00012886,2]
[335965836,1724645453400,-500.0,0.00012886,2]
[335965837,1724645453410,-500.0,0.00012886,2]
[335965838,1724645453419,-500.0,0.00012886,2]
[335965839,1724645453429,-500.0,0.00012886,2]
[335965840,1724645453439,-500.0,0.00012886,2]
[335965841,1724645453449,-500.0,0.00012886,2]
[335965842,1724645453458,-693.12,0.00012886,2]
[335965843,1724645453467,-500.0,0.00012886,2]
[335965844,1724645453477,-565.97,0.00012886,2]
[335965845,1724645453487,-500.0,0.00012886,2]
[335965846,1724645453497,-500.0,0.00012886,2]
[335965847,1724645453506,-500.0,0.00012886,2]
[335965848,1724645453516,-500.0,0.00012886,2]
[335965849,1724645453526,-904.66,0.00012886,2]
[335965850,1724645453536,-500.0,0.00012886,2]
[335965851,1724645453545,-500.0,0.00012886,2]
[335965852,1724645453555,-500.0,0.00012886,2]
[335965853,1724645453564,-500.0,0.00012886,2]
[335965854,1724645453574,-500.0,0.00012886,2]
[335965855,1724645453584,-500.0,0.00012886,2]
[335965856,1724645453593,-657.64,0.00012886,2]
[335965857,1724645453603,-531.49,0.00012886,2]
[335965858,1724645453613,-500.0,0.00012886,2]
[335965859,1724645453623,-1035.4,0.00012886,2]
[335965860,1724645453633,-500.0,0.00012886,2]
[335965861,1724645453643,-500.0,0.00012886,2]
[335965862,1724645453652,-500.0,0.00012886,2]
[335965863,1724645453661,-500.0,0.00012886,2]
[335965864,1724645453671,-583.67,0.00012886,2]
[335965865,1724645453680,-524.33,0.00012886,2]
[335965866,1724645453691,-500.0,0.00012886,2]
[335965867,1724645453701,-500.0,0.00012886,2]
[335965868,1724645453710,-808.42,0.00012886,2]
[335965869,1724645453719,-500.0,0.00012886,2]
[335965870,1724645453729,-500.0,0.00012886,2]
[335965871,1724645453739,-545.62,0.00012886,2]
[335965872,1724645453749,-500.0,0.00012886,2]
[335965873,1724645453759,-500.0,0.00012886,2]
[335965874,1724645453769,-717.4,0.00012886,2]
[335965875,1724645453779,-648.79,0.00012886,2]
[335965876,1724645453790,-803.68,0.00012886,2]
[335965877,1724645453800,-500.0,0.00012886,2]
[335965878,1724645453810,-500.0,0.00012886,2]
[335965879,1724645453821,-12558.9,0.00012886,2]
[335965880,1724645453833,-1524.33,0.00012886,2]
[335965881,1724645453847,-500.0,0.00012886,2]
[335965882,1724645453859,-706.57,0.00012886,2]
[335965883,1724645453870,-500.0,0.00012886,2]
[335965884,1724645453880,-500.0,0.00012886,2]
[335965885,1724645453890,-3330.93,0.00012886,2]
[335965886,1724645453899,-3142.16,0.00012886,2]
[335965887,1724645453909,-500.0,0.00012886,2]
[335965888,1724645453919,-1606.61,0.00012886,2]
[335965889,1724645453928,-500.0,0.00012886,2]
[335965890,1724645453938,-1138.23,0.00012886,2]
[335965891,1724645453948,-939.94,0.00012886,2]
[335965892,1724645453958,-560.33,0.00012886,2]
[335965893,1724645453967,-500.0,0.00012886,2]
[335965894,1724645453977,-500.0,0.00012886,2]
[335965895,1724645453986,-500.0,0.00012886,2]
[335965896,1724645453996,-611.83,0.00012886,2]
[335965897,1724645454006,-686.76,0.00012886,2]
[335965898,1724645454016,-500.0,0.00012886,2]
[335965899,1724645454025,-500.0,0.00012886,2]
[335965900,1724645454035,-976.48,0.00012886,2]
[335965901,1724645454045,-863.24,0.00012886,2]
[335965902,1724645454055,-1313.21,0.00012886,2]
[335965903,1724645454064,-1463.07,0.00012886,2]
[335965904,1724645454074,-500.0,0.00012886,2]
[335965905,1724645454083,-792.06,0.00012886,2]
[335965906,1724645454093,-500.0,0.00012886,2]
[335965907,1724645454102,-662.49,0.00012886,2]
[335965908,1724645454111,-500.0,0.00012886,2]
[335965909,1724645454121,-500.0,0.00012886,2]
[335965910,1724645454132,-651.38,0.00012886,2]
[335965911,1724645454141,-1180.48,0.00012886,2]
[335965912,1724645454153,-4146.7,0.00012886,2]
[335965913,1724645454163,-228.38501131,0.00012886,2]
[335965914,1724645454173,-500.0,0.00012886,2]
[335965915,1724645454182,-931.06,0.00012886,2]
[335965916,1724645454192,-500.0,0.00012886,2]
[335965917,1724645454201,-1089.41,0.00012886,2]
[335965918,1724645454211,-549.09,0.00012886,2]
[335965919,1724645454221,-500.0,0.00012886,2]
[335965920,1724645454230,-590.46,0.00012886,2]
[335965921,1724645454240,-500.0,0.00012886,2]
[335965922,1724645454250,-517.52,0.00012886,2]
[335965923,1724645454262,-4166.39,0.00012886,2]
[335965924,1724645454272,-3358.17,0.00012886,2]
[335965925,1724645454283,-716.61,0.00012886,2]
[335965926,1724645454294,-651.97,0.00012886,2]
[335965927,1724645454304,-648.22,0.00012886,2]
[335965928,1724645454317,-34978.0,0.00012886,2]
[335965929,1724645454327,-726.5,0.00012886,2]
[335965930,1724645454338,-500.0,0.00012886,2]
[335965931,1724645454348,-500.0,0.00012886,2]
[335965932,1724645454359,-500.0,0.00012886,2]
[335965933,1724645454369,-608.89,0.00012886,2]
[335965934,1724645454379,-500.0,0.00012886,2]
[335965935,1724645454391,-1267.99,0.00012886,2]
[335965936,1724645454405,-500.0,0.00012886,2]
[335965937,1724645454417,-901.99,0.00012886,2]
[335965938,1724645454428,-500.0,0.00012886,2]
[335965939,1724645454441,-729.85,0.00012886,2]
[335965940,1724645454451,-890.55,0.00012886,2]
[335965941,1724645454462,-500.0,0.00012886,2]
[335965942,1724645454472,-500.0,0.00012886,2]
[335965943,1724645454487,-775.56,0.00012886,2]
[335965944,1724645454498,-874.83,0.00012886,2]
[335965945,1724645454508,-535.28,0.00012886,2]
[335965946,1724645454518,-618.82,0.00012886,2]
[335965947,1724645454529,-559.24,0.00012886,2]
[335965948,1724645454539,-524.35,0.00012886,2]
[335965949,1724645454551,-1320.24,0.00012886,2]
[335965950,1724645454562,-2013.57,0.00012886,2]
[335965951,1724645454571,-947.96,0.00012886,2]
[335965952,1724645454580,-574.56,0.00012886,2]
[335965953,1724645454592,-712.0,0.00012886,2]
[335965954,1724645454607,-500.0,0.00012886,2]
[335965955,1724645454617,-565.4,0.00012886,2]
[335965956,1724645454626,-647.46,0.00012886,2]
[335965957,1724645454635,-676.76,0.00012886,2]
[335965958,1724645454644,-575.35,0.00012886,2]
[335965959,1724645454654,-500.0,0.00012886,2]
[335965960,1724645454663,-1087.34,0.00012886,2]
[335965961,1724645454672,-626.87,0.00012886,2]
[335965962,1724645454682,-500.0,0.00012886,2]
[335965963,1724645454692,-870.51,0.00012886,2]
[335965964,1724645454701,-608.41,0.00012886,2]
[335965965,1724645454711,-503.83,0.00012886,2]
[335965966,1724645454720,-685.54,0.00012886,2]
[335965967,1724645454730,-814.72,0.00012886,2]
[335965968,1724645454739,-500.0,0.00012886,2]
[335965969,1724645454748,-928.43,0.00012886,2]
[335965970,1724645454757,-591.66,0.00012886,2]
[335965971,1724645454767,-500.0,0.00012886,2]
[335965972,1724645454776,-1482.66,0.00012886,2]
[335965973,1724645454785,-1494.93,0.00012886,2]
[335965974,1724645454794,-500.0,0.00012886,2]
[335965975,1724645454806,-1116.442269,0.00012886,2]
[335965976,1724645454821,-500.0,0.00012886,2]
[335965977,1724645454834,-500.0,0.00012886,2]
[335965978,1724645454848,-1116.442269,0.00012886,2]
[335965979,1724645454863,-500.0,0.00012886,2]
[335965980,1724645454874,-2591.66,0.00012886,2]
[335965981,1724645454886,-572.0,0.00012886,2]
[335965982,1724645454900,-776.42,0.00012886,2]
[335965983,1724645454915,-156.13373191,0.00012886,2]
[335965984,1724645454929,-1851.29332,0.00012894,2]
[335965985,1724645454942,-1851.29332,0.00012894,2]
[335965986,1724645454958,-5628.37,0.00012894,2]
[335965987,1724645454969,-500.0,0.00012894,2]
[335965988,1724645454984,-676.73,0.00012894,2]
[335965989,1724645455000,-10603.96,0.00012894,2]
[335965990,1724645455012,-500.0,0.00012894,2]
[335965991,1724645455025,-754.79,0.00012894,2]
[335965992,1724645455039,-1165.79,0.00012894,2]
[335965993,1724645455054,-724.91,0.00012894,2]
[335965994,1724645455066,-500.0,0.00012894,2]
[335965995,1724645455079,-1116.442269,0.00012894,2]
[335965996,1724645455092,-1116.442269,0.00012894,2]
[335965997,1724645455104,-515.05,0.00012895,2]
[335965998,1724645455114,-500.0,0.00012895,2]
[335965999,1724645455124,-644.1,0.00012895,2]
[335966000,1724645455136,-500.0,0.00012895,2]
[335966001,1724645455146,-500.0,0.00012895,2]
[335966002,1724645455159,-798.6,0.00012895,2]
[335966003,1724645455171,-525.94,0.00012895,2]
[335966004,1724645455184,-513.51,0.00012895,2]
[335966005,1724645455196,-1151.09,0.00012895,2]
[335966006,1724645455209,-500.0,0.00012895,2]
[335966007,1724645455221,-798.58,0.00012895,2]
[335966008,1724645455234,-1105.08,0.00012895,2]
[335966009,1724645455247,-500.0,0.00012895,2]
[335966010,1724645455258,-500.0,0.00012895,2]
[335966011,1724645455268,-1042.06,0.00012895,2]
[335966012,1724645455278,-500.0,0.00012895,2]
[335966013,1724645455288,-1190.98,0.00012895,2]
[335966014,1724645455301,-500.0,0.00012895,2]
[335966015,1724645455316,-1032.35,0.00012895,2]
[335966016,1724645455332,-678.44,0.00012895,2]
[335966017,1724645455343,-872.9,0.00012895,2]
[335966018,1724645455355,-507.93,0.00012895,2]
[335966019,1724645455367,-500.0,0.00012895,2]
[335966020,1724645455378,-958.35,0.00012895,2]
[335966021,1724645455390,-531.67,0.00012895,2]
[335966022,1724645455403,-1084.3,0.00012895,2]
[335966023,1724645455414,-847.27,0.00012895,2]
[335966024,1724645455424,-861.91,0.00012895,2]
[335966025,1724645455437,-733.62,0.00012895,2]
[335966026,1724645455452,-500.0,0.00012895,2]
[335966027,1724645455463,-545.39,0.00012895,2]
[335966028,1724645455474,-500.0,0.00012895,2]
[335966029,1724645455485,-500.0,0.00012895,2]
[335966030,1724645455495,-811.25,0.00012895,2]
[335966031,1724645455506,-1203.84,0.00012895,2]
[335966032,1724645455517,-645.12,0.00012895,2]
[335966033,1724645455527,-1099.71,0.00012895,2]
[335966034,1724645455538,-822.32,0.00012895,2]
[335966035,1724645455548,-1079.64,0.00012895,2]
[335966036,1724645455559,-528.94,0.00012895,2]
[335966037,1724645455571,-822.12,0.00012895,2]
[335966038,1724645455581,-700.57,0.00012895,2]
[335966039,1724645455592,-539.05,0.00012895,2]
[335966040,1724645455603,-548.49,0.00012895,2]
[335966041,1724645455613,-692.07,0.00012895,2]
[335966042,1724645455624,-803.88,0.00012895,2]
[335966043,1724645455634,-1086.52,0.00012895,2]
[335966044,1724645455646,-508.14,0.00012895,2]
[335966045,1724645455657,-500.0,0.00012896,2]
[335966046,1724645455669,-593.89,0.00012896,2]
[335966047,1724645455679,-500.0,0.00012896,2]
[335966048,1724645455690,-545.01,0.00012896,2]
[335966049,1724645455710,-211.98822254,0.00012896,2]
[335966050,1724645455721,-500.0,0.00012896,2]
[335966051,1724645455731,-500.0,0.00012896,2]
[335966052,1724645455743,-500.0,0.00012896,2]
[335966053,1724645455754,-500.0,0.00012896,2]
[335966054,1724645455764,-500.0,0.00012896,2]
[335966055,1724645455775,-500.0,0.00012896,2]
[335966056,1724645455785,-514.07,0.00012896,2]
[335966057,1724645455796,-500.0,0.00012896,2]
[335966058,1724645455806,-500.0,0.00012896,2]
[335966059,1724645455817,-501.97,0.00012896,2]
[335966060,1724645455828,-500.0,0.00012896,2]
[335966061,1724645455839,-500.0,0.00012896,2]
[335966062,1724645455850,-500.0,0.00012896,2]
[335966063,1724645455861,-500.0,0.00012896,2]
[335966064,1724645455871,-424.75559775,0.00012896,2]
[335966065,1724645455882,-500.0,0.00012896,2]
[335966066,1724645455893,-584.75050944,0.00012896,2]
[335966067,1724645455905,-500.0,0.00012896,2]
[335966068,1724645455916,-500.0,0.00012896,2]
[335966069,1724645455926,-724.1,0.00012896,2]
[335966070,1724645455937,-500.0,0.00012896,2]
[335966071,1724645455950,-656.82,0.00012896,2]
[335966072,1724645455962,-595.12177706,0.00012896,2]
[335966073,1724645455973,-500.0,0.00012896,2]
[335966074,1724645455984,-500.0,0.00012896,2]
[335966075,1724645455995,-500.0,0.00012896,2]
[335966076,1724645456006,-500.0,0.00012896,2]
[335966077,1724645456017,-500.0,0.00012896,2]
[335966078,1724645456027,-500.0,0.00012896,2]
[335966079,1724645456038,-500.0,0.00012896,2]
[335966080,1724645456050,-523.37,0.00012896,2]
[335966081,1724645456064,-619.4,0.00012896,2]
[335966082,1724645456076,-500.0,0.00012896,2]
[335966083,1724645456088,-500.0,0.00012896,2]
[335966084,1724645456100,-500.0,0.00012896,2]
[335966085,1724645456111,-500.0,0.00012896,2]
[335966086,1724645456122,-500.0,0.00012896,2]
[335966087,1724645456132,-565.21,0.00012896,2]
[335966088,1724645456146,-500.0,0.00012896,2]
[335966089,1724645456157,-726.33,0.00012896,2]
[335966090,1724645456168,-677.46,0.00012896,2]
[335966091,1724645456179,-798.84,0.00012896,2]
[335966092,1724645456191,-500.0,0.00012896,2]
[335966093,1724645456203,-500.0,0.00012896,2]
[335966094,1724645456214,-656.44,0.00012896,2]
[335966095,1724645456226,-500.0,0.00012896,2]
[335966096,1724645456237,-1151.91,0.00012896,2]
[335966097,1724645456249,-620.1,0.00012896,2]
[335966098,1724645456260,-666.21,0.00012896,2]
[335966099,1724645456272,-500.0,0.00012896,2]
[335966100,1724645456284,-500.0,0.00012896,2]
[335966101,1724645456295,-500.0,0.00012896,2]
[335966102,1724645456307,-500.0,0.00012896,2]
[335966103,1724645456321,-1276.08,0.00012896,2]
[335966104,1724645456332,-765.97,0.00012896,2]
[335966105,1724645456343,-500.0,0.00012896,2]
[335966106,1724645456354,-500.0,0.00012896,2]
[335966107,1724645456367,-658.67,0.00012896,2]
[335966108,1724645456378,-500.0,0.00012896,2]
[335966109,1724645456390,-1851.29332,0.00012896,2]
[335966110,1724645456402,-1851.29332,0.00012896,2]
[335966111,1724645456413,-621.86,0.00012896,2]
[335966112,1724645456425,-931.11,0.00012896,2]
[335966113,1724645456436,-688.42,0.00012896,2]
[335966114,1724645456448,-808.32,0.00012896,2]
[335966115,1724645456459,-598.48,0.00012896,2]
[335966116,1724645456470,-500.0,0.00012896,2]
[335966117,1724645456481,-500.0,0.00012896,2]
[335966118,1724645456492,-500.0,0.00012896,2]
[335966119,1724645456503,-500.0,0.00012896,2]
[335966120,1724645456515,-500.0,0.00012896,2]
[335966121,1724645456525,-500.0,0.00012896,2]
[335966122,1724645456536,-271.82761531,0.00012898,2]
[335966123,1724645456547,-7793.1017485,0.000129,2]
[335966124,1724645456558,-1028.76901252,0.00012921,2]
[335966125,1724645456569,-1000.0,0.00012921,2]
[335966126,1724645456580,-1000.0,0.00012921,2]
[335966127,1724645456591,-1003.99234135,0.00012921,2]
[335966128,1724645456602,-863.00525169,0.00012921,2]
[335966129,1724645456613,-207.7743686,0.00012932,2]
[335966130,1724645456623,-155.2889194,0.00012932,2]
[335966131,1724645456634,-207.7743686,0.00012932,2]
[335966132,1724645456645,-500.0,0.00012933,2]
[335966133,1724645456655,-500.0,0.00012933,2]
[335966134,1724645456666,-500.0,0.00012933,2]
[335966135,1724645456676,-500.0,0.00012933,2]
[335966136,1724645456686,-500.0,0.00012933,2]
[335966137,1724645456699,-500.0,0.00012933,2]
[335966138,1724645456710,-500.0,0.00012933,2]
[335966139,1724645456720,-500.0,0.00012933,2]
[335966140,1724645456731,-500.0,0.00012933,2]
[335966141,1724645456745,-500.0,0.00012933,2]
[335966142,1724645456755,-500.0,0.00012933,2]
[335966143,1724645456766,-500.0,0.00012933,2]
[335966144,1724645456778,-500.0,0.00012933,2]
[335966145,1724645456788,-500.0,0.00012933,2]
[335966146,1724645456799,-500.0,0.00012933,2]
[335966147,1724645456809,-500.0,0.00012933,2]
[335966148,1724645456819,-500.0,0.00012933,2]
[335966149,1724645456829,-500.0,0.00012933,2]
[335966150,1724645456839,-500.0,0.00012933,2]
[335966151,1724645456849,-500.0,0.00012933,2]
[335966152,1724645456859,-500.0,0.00012933,2]
[335966153,1724645456869,-500.0,0.00012933,2]
[335966154,1724645456880,-470.29,0.00012933,2]
[335966155,1724645456891,-326.22,0.00012933,2]
[335966156,1724645456902,-500.0,0.00012933,2]
[335966157,1724645456914,-500.0,0.00012933,2]
[335966158,1724645456924,-569.97573911,0.00012934,2]
[335966159,1724645456935,-493.69395889,0.00012971,2]
[335966160,1724645456946,-3094.87417801,0.00012971,2]
[335966161,1724645456956,-394.68116315,0.00012985,2]
[335966162,1724645456967,-261.3255197,0.00012985,2]
[335966163,1724645456978,-500.0,0.00012998,2]
[335966164,1724645456988,-500.0,0.00012998,2]
[335966165,1724645456999,-752.78455127,0.00012999,2]
[335966166,1724645457009,-863.13231421,0.00013,2]
[335966167,1724645457021,-646.96149808,0.00013,2]
[335966168,1724645457034,-500.0,0.00013,2]
[335966169,1724645457046,-604.0,0.00013,2]
[335966170,1724645457059,-1000.0,0.00013005,2]
[335966171,1724645457070,-1000.0,0.00013031,2]
[335966172,1724645457081,-1004.64731291,0.00013034,2]
[335966173,1724645457091,-2144.32657805,0.00013051,2]
[335966174,1724645457102,-1000.0,0.00013054,2]
[335966175,1724645457112,-1000.0,0.00013069,2]
[335966176,1724645457123,-524.143,0.00013076,2]
[335966177,1724645457134,-1419.866,0.00013076,2]
[335966178,1724645457144,-1000.0,0.00013088,2]
[335966179,1724645457154,-1000.0,0.00013089,2]
[335966180,1724645457165,-500.0,0.0001314,2]
[335966181,1724645457175,-742.68,0.0001314,2]
[335966182,1724645457186,-873.03,0.0001315,2]
[335966183,1724645457197,-8163.02,0.0001315,2]
[335966184,1724645457207,-500.0,0.0001315,2]
[335966185,1724645457218,-737.56,0.0001315,2]
[335966186,1724645457228,-500.0,0.0001315,2]
[335966187,1724645457239,-665.66,0.0001315,2]
[335966188,1724645457538,-1018.93,0.0001315,2]
[335966189,1724645457559,-12437.77,0.0001315,2]
[335966190,1724645457569,-1116.442269,0.0001315,2]
[335966191,1724645457579,-1116.442269,0.0001315,2]
[335966192,1724645457589,-633.34,0.0001315,2]
[335966193,1724645457598,-678.15,0.0001315,2]
[335966194,1724645457607,-500.0,0.0001316,2]
[335966195,1724645457618,-701.99,0.0001316,2]
[335966196,1724645457628,-647.38,0.0001316,2]
[335966197,1724645457638,-857.91,0.0001316,2]
[335966198,1724645457648,-500.0,0.0001316,2]
[335966199,1724645457660,-645.95,0.0001316,2]
[335966200,1724645457671,-500.0,0.0001316,2]
[335966201,1724645457681,-500.0,0.0001316,2]
[335966202,1724645457690,-500.0,0.0001316,2]
[335966203,1724645457700,-500.0,0.0001316,2]
[335966204,1724645457710,-500.0,0.0001316,2]
[335966205,1724645457721,-500.0,0.0001316,2]
[335966206,1724645457731,-500.0,0.0001316,2]
[335966207,1724645457743,-500.0,0.0001316,2]
[335966208,1724645457754,-541.23,0.0001316,2]
[335966209,1724645457763,-500.0,0.0001316,2]
[335966210,1724645457772,-500.0,0.0001316,2]
[335966211,1724645457781,-500.0,0.0001316,2]
[335966212,1724645457791,-500.0,0.0001316,2]
[335966213,1724645457801,-500.0,0.0001316,2]
[335966214,1724645457809,-928.8,0.0001316,2]
[335966215,1724645457819,-1004.93,0.0001316,2]
[335966216,1724645457829,-500.0,0.0001316,2]
[335966217,1724645457839,-500.0,0.0001316,2]
[335966218,1724645457852,-500.0,0.0001316,2]
[335966219,1724645457863,-565.63,0.0001316,2]
[335966220,1724645457873,-713.19,0.0001316,2]
[335966221,1724645457882,-500.0,0.0001316,2]
[335966222,1724645457891,-500.0,0.0001316,2]
[335966223,1724645457900,-822.12,0.0001316,2]
[335966224,1724645457910,-760.66,0.0001316,2]
[335966225,1724645457919,-564.11,0.0001316,2]
[335966226,1724645457930,-825.52,0.0001316,2]
[335966227,1724645457939,-628.7,0.0001316,2]
[335966228,1724645457949,-942.5,0.0001316,2]
[335966229,1724645457958,-585.68,0.0001316,2]
[335966230,1724645457968,-500.0,0.0001316,2]
[335966231,1724645457977,-500.0,0.0001316,2]
[335966232,1724645457986,-567.0,0.0001316,2]
[335966233,1724645457995,-500.0,0.0001316,2]
[335966234,1724645458004,-1159.41,0.0001316,2]
[335966235,1724645458013,-500.0,0.0001316,2]
[335966236,1724645458022,-500.0,0.0001316,2]
[335966237,1724645458031,-634.99,0.0001316,2]
[335966238,1724645458040,-635.4,0.0001316,2]
[335966239,1724645458050,-500.0,0.0001316,2]
[335966240,1724645458060,-1089.03,0.0001316,2]
[335966241,1724645458069,-500.0,0.0001316,2]
[335966242,1724645458079,-500.0,0.0001316,2]
[335966243,1724645458089,-975.63,0.0001316,2]
[335966244,1724645458098,-500.0,0.0001316,2]
[335966245,1724645458107,-510.56,0.0001316,2]
[335966246,1724645458116,-500.0,0.0001316,2]
[335966247,1724645458126,-500.0,0.0001316,2]
[335966248,1724645458135,-500.0,0.0001316,2]
[335966249,1724645458144,-502.64694305,0.0001316,2]
[335966250,1724645458153,-500.0,0.0001316,2]
[335966251,1724645458162,-500.0,0.0001316,2]
[335966252,1724645458172,-318.22419931,0.0001316,2]
[335966253,1724645458181,-693.12,0.0001316,2]
[335966254,1724645458191,-500.0,0.0001316,2]
[335966255,1724645458200,-565.97,0.0001316,2]
[335966256,1724645458209,-500.0,0.0001316,2]
[335966257,1724645458220,-500.0,0.0001316,2]
[335966258,1724645458231,-500.0,0.0001316,2]
[335966259,1724645458241,-500.0,0.0001316,2]
[335966260,1724645458252,-904.66,0.0001316,2]
[335966261,1724645458262,-500.0,0.0001316,2]
[335966262,1724645458271,-500.0,0.0001316,2]
[335966263,1724645458280,-500.0,0.0001316,2]
[335966264,1724645458290,-500.0,0.0001316,2]
[335966265,1724645458299,-500.0,0.0001316,2]
[335966266,1724645458308,-657.64,0.0001316,2]
[335966267,1724645458318,-531.49,0.0001316,2]
[335966268,1724645458328,-500.0,0.0001316,2]
[335966269,1724645458338,-1035.4,0.0001316,2]
[335966270,1724645458348,-500.0,0.0001316,2]
[335966271,1724645458357,-500.0,0.0001316,2]
[335966272,1724645458367,-500.0,0.0001316,2]
[335966273,1724645458376,-500.0,0.0001316,2]
[335966274,1724645458385,-583.67,0.0001316,2]
[335966275,1724645458395,-524.33,0.0001316,2]
[335966276,1724645458404,-500.0,0.0001316,2]
[335966277,1724645458413,-808.42,0.0001316,2]
[335966278,1724645458421,-500.0,0.0001316,2]
[335966279,1724645458430,-500.0,0.0001316,2]
[335966280,1724645458439,-500.0,0.0001316,2]
[335966281,1724645458449,-545.62,0.0001316,2]
[335966282,1724645458459,-500.0,0.0001316,2]
[335966283,1724645458468,-500.0,0.0001316,2]
[335966284,1724645458477,-717.4,0.0001316,2]
[335966285,1724645458486,-648.79,0.0001316,2]
[335966286,1724645458495,-803.68,0.0001316,2]
[335966287,1724645458504,-500.0,0.0001316,2]
[335966288,1724645458513,-536.41717787,0.0001316,2]
[335966289,1724645458521,-12558.9,0.0001316,2]
[335966290,1724645458530,-1524.33,0.0001316,2]
[335966291,1724645458540,-500.0,0.0001316,2]
[335966292,1724645458549,-706.57,0.0001316,2]
[335966293,1724645458559,-500.0,0.0001316,2]
[335966294,1724645458568,-500.0,0.0001316,2]
[335966295,1724645458577,-3330.93,0.0001316,2]
[335966296,1724645458587,-3142.16,0.0001316,2]
[335966297,1724645458596,-500.0,0.0001316,2]
[335966298,1724645458606,-1606.61,0.0001316,2]
[335966299,1724645458615,-500.0,0.0001316,2]
[335966300,1724645458624,-1138.23,0.0001316,2]
[335966301,1724645458633,-939.94,0.0001316,2]
[335966302,1724645458642,-560.33,0.0001316,2]
[335966303,1724645458651,-500.0,0.0001316,2]
[335966304,1724645458660,-500.0,0.0001316,2]
[335966305,1724645458670,-500.0,0.0001316,2]
[335966306,1724645458680,-611.83,0.0001316,2]
[335966307,1724645458689,-686.76,0.0001316,2]
[335966308,1724645458699,-500.0,0.0001316,2]
[335966309,1724645458708,-500.0,0.0001316,2]
[335966310,1724645458718,-976.48,0.0001316,2]
[335966311,1724645458727,-863.24,0.0001316,2]
[335966312,1724645458737,-1313.21,0.0001316,2]
[335966313,1724645458746,-1463.07,0.0001316,2]
[335966314,1724645458756,-500.0,0.0001316,2]
[335966315,1724645458766,-792.06,0.0001316,2]
[335966316,1724645458775,-500.0,0.0001316,2]
[335966317,1724645458785,-662.49,0.0001316,2]